bitfinex/quotes_ETHUSD_20240718
["timestamp","ask_amount","ask_price","bid_price","bid_amount"]
[1721342142950,0.0751267,3434.4,3434.3,2.91177]
[1721342143244,2.91131,3434.9,3434.3,2.91177]
[1721342143460,0.0751267,3434.4,3434.3,2.91177]
[1721342143648,2.91131,3434.9,3434.3,2.91177]
[1721342143851,0.07512767,3434.4,3434.3,2.91177]
[1721342144335,2.91131,3434.9,3434.3,2.91177]
[1721342144537,0.07530991,3434.8,3434.3,2.91177]
[1721342148386,0.07530991,3434.8,3434.3,2.91175]
[1721342148593,0.07530991,3434.8,3434.7,2.91146]
[1721342148815,2.91097,3435.3,3434.7,2.91146]
[1721342149026,0.07530894,3434.8,3434.7,2.91146]
[1721342149157,2.91097,3435.3,3434.7,2.91146]
[1721342149361,0.07532058,3434.8,3434.7,2.91146]
[1721342149598,2.91105,3435.2,3434.7,2.91146]
[1721342149957,0.07547273,3435.1,3434.7,2.91146]
[1721342151622,0.07547273,3435.1,3435.0,8.0871]
[1721342151985,2.91066,3435.7,3435.1,2.91106]
[1721342152411,2.91066,3435.7,3435.0,5.1759]
[1721342152412,0.07323497,3435.6,3435.2,2.91103]
[1721342152889,0.07316937,3435.5,3435.3,2.91095]
[1721342153186,2.91054,3435.8,3435.2,2.91103]
[1721342153415,0.07310164,3435.4,3435.2,2.91103]
[1721342153587,2.91054,3435.8,3435.2,2.91103]
[1721342153790,0.07307655,3435.3,3435.2,2.91103]
[1721342153989,2.91057,3435.8,3435.0,2.2647]
[1721342154201,0.07307655,3435.3,3435.0,2.2647]
[1721342154427,2.911,3435.3,3434.7,2.2647]
[1721342154842,0.07303101,3435.2,3434.7,5.17615]
[1721342156136,2.911,3435.3,3434.7,5.17615]
[1721342160644,2.91074,3435.6,3434.9,2.91129]
[1721342160947,0.07305361,3435.5,3434.9,2.91129]
[1721342161314,2.91096,3435.3,3434.7,5.17615]
[1721342161505,0.07291698,3435.2,3434.7,2.2647]
[1721342161722,2.91108,3435.2,3434.7,2.2647]
[1721342162059,0.07286655,3435.1,3434.7,5.17615]
[1721342163734,0.07286655,3435.1,3434.7,2.2647]
[1721342164347,0.07286655,3435.1,3434.7,5.17614]
[1721342167344,2.91099,3435.3,3434.7,5.17614]
[1721342167576,0.0729326,3435.2,3434.7,5.17614]
[1721342168078,0.07288705,3435.1,3434.8,2.91137]
[1721342168668,0.07288705,3435.1,3435.0,2.9112]
[1721342170344,0.07288705,3435.1,3434.8,2.9113]
[1721342171180,0.07288705,3435.1,3434.9,2.91129]
[1721342171750,0.07288705,3435.1,3434.9,5.82245]
[1721342171949,0.07288705,3435.1,3434.7,2.2647]
[1721342172156,3.21694496,3435.0,3434.4,2.91165]
[1721342172365,0.07279594,3434.9,3434.4,2.91165]
[1721342172567,0.07279594,3434.9,3434.4,2.91164]
[1721342172913,0.07279594,3434.9,3434.4,5.82329]
[1721342173059,0.07279594,3434.9,3434.4,2.91164]
[1721342174883,0.07279594,3434.9,3434.3,2.4064]
[1721342175088,0.07279594,3434.9,3434.8,5.31777]
[1721342175288,0.0729326,3435.2,3434.8,5.31777]
[1721342175467,0.07001913,3434.9,3434.8,5.31777]
[1721342175795,0.07030951,3434.9,3434.8,5.31777]
[1721342175973,0.0729326,3435.2,3434.8,8.22909]
[1721342176150,0.07042945,3435.1,3434.9,2.91128]
[1721342177273,0.07042945,3435.1,3435.0,2.9112]
[1721342177476,0.0729326,3435.2,3435.0,2.9112]
[1721342177854,0.07045274,3435.1,3435.0,2.9112]
[1721342178190,0.0729326,3435.2,3435.0,2.9112]
[1721342178356,0.0729326,3435.2,3435.1,2.91112]
[1721342178549,0.14330906,3435.2,3435.1,2.91112]
[1721342179067,0.14330906,3435.2,3435.0,2.91115]
[1721342179248,0.14330906,3435.2,3434.8,2.4064]
[1721342179249,0.14330906,3435.2,3435.1,2.96934025]
[1721342179447,0.14330906,3435.2,3435.1,5.82224]
[1721342179650,0.0729326,3435.2,3435.1,2.91112]
[1721342180262,0.0729326,3435.2,3435.1,5.82224]
[1721342180691,0.0729326,3435.2,3435.1,8.20714]
[1721342190201,0.0729326,3435.2,3435.1,9.24514]
[1721342191995,0.0729326,3435.2,3435.1,8.20714]
[1721342192195,0.0729326,3435.2,3435.1,2.91112]
[1721342192365,0.0729326,3435.2,3435.1,5.82224]
[1721342192899,0.0729326,3435.2,3435.1,2.91112]
[1721342193267,0.14358816,3435.2,3435.1,5.82224]
[1721342193668,0.0729326,3435.2,3435.1,5.82224]
[1721342193866,0.0729326,3435.2,3435.1,2.91112]
[1721342194384,0.0729326,3435.2,3435.1,5.82224]
[1721342196109,0.0729326,3435.2,3435.1,6.86024]
[1721342196313,0.0729326,3435.2,3435.1,9.22984]
[1721342203078,0.0729326,3435.2,3435.1,8.19184]
[1721342206130,0.0729326,3435.2,3435.1,9.22984]
[1721342219521,0.0729326,3435.2,3435.1,8.19184]
[1721342220404,0.0729326,3435.2,3435.1,5.82224]
[1721342222344,0.0729326,3435.2,3435.1,6.83449264]
[1721342224646,0.0729326,3435.2,3435.1,6.83449434]
[1721342226257,0.0729326,3435.2,3435.1,8.35287172]
[1721342228050,0.0729326,3435.2,3435.1,8.35284922]
[1721342231215,0.0729326,3435.2,3435.1,8.35281103]
[1721342234449,0.0729326,3435.2,3435.1,8.35286643]
[1721342236985,0.0729326,3435.2,3435.1,5.44174643]
[1721342237204,0.14360766,3435.2,3435.0,2.91112]
[1721342237345,0.14360766,3435.2,3434.8,2.91131]
[1721342237551,0.43418337,3435.2,3434.8,2.91131]
[1721342237885,0.43418337,3435.2,3434.9,2.91124]
[1721342238082,0.07063047,3435.1,3434.9,2.91124]
[1721342243853,0.07063047,3435.1,3434.9,2.91123]
[1721342250293,0.07063047,3435.1,3435.0,2.9112]
[1721342250499,0.07063047,3435.1,3435.0,5.8224]
[1721342250670,0.0729326,3435.2,3435.1,2.91112]
[1721342251291,0.1433342,3435.2,3435.1,2.91112]
[1721342252396,0.1433342,3435.2,3435.1,5.82224]
[1721342256004,0.0729326,3435.2,3435.1,5.82224]
[1721342262518,0.0729326,3435.2,3435.1,6.83446561]
[1721342262815,0.0729326,3435.2,3435.1,8.35275418]
[1721342262978,0.0729326,3435.2,3435.1,11.26387418]
[1721342263187,0.0729326,3435.2,3435.1,11.86980972]
[1721342263388,0.0729326,3435.2,3435.1,17.25632972]
[1721342263629,0.0729326,3435.2,3435.1,19.65011558]
[1721342263794,0.0729326,3435.2,3435.1,22.58320466]
[1721342263983,0.0729326,3435.2,3435.1,25.64920466]
[1721342264188,2.90965,3436.9,3436.3,2.91002]
[1721342264189,2.3457,3436.7,3436.3,2.91002]
[1721342264400,2.3457,3436.7,3435.9,2.4754]
[1721342264401,2.3457,3436.7,3436.5,2.90993]
[1721342264622,0.06607248,3436.6,3436.5,5.8198]
[1721342264990,2.3457,3437.0,3436.1,1.09619546]
[1721342265214,1.038,3437.2,3436.8,2.90967]
[1721342266027,1.038,3437.2,3436.8,2.90961]
[1721342267303,1.038,3437.2,3436.9,2.90955]
[1721342267690,2.3457,3437.3,3436.9,2.90955]
[1721342267891,3.5172,3437.6,3437.0,2.90947]
[1721342268521,0.06431673,3437.5,3437.0,2.90947]
[1721342269440,0.06431673,3437.5,3437.2,2.90928]
[1721342269607,0.06431673,3437.5,3437.4,2.90917]
[1721342270010,1.038,3437.7,3437.4,2.90917]
[1721342270498,1.038,3437.7,3437.5,2.90908]
[1721342270911,1.038,3437.9,3437.6,2.90898]
[1721342271136,1.28769544,3437.9,3437.6,2.90898]
[1721342271723,0.0177544,3438.0,3437.7,2.90892]
[1721342272167,0.06188265,3437.9,3437.7,2.90892]
[1721342272461,0.06188265,3437.9,3437.8,8.09526]
[1721342273136,0.0177544,3438.0,3437.9,5.8175]
[1721342273337,0.0177544,3438.0,3437.9,6.8555]
[1721342275409,0.0177544,3438.0,3437.9,2.90875]
[1721342275615,0.07770997,3438.0,3437.9,2.90875]
[1721342278062,0.07770997,3438.0,3437.9,5.8175]
[1721342278273,0.07770997,3438.0,3437.9,9.1792]
[1721342278560,0.0177544,3438.0,3437.9,9.1792]
[1721342279714,0.0177544,3438.0,3437.9,12.08795]
[1721342279917,0.0177544,3438.0,3437.9,15.08795]
[1721342280347,0.0177544,3438.0,3437.9,14.04995]
[1721342280762,0.0177544,3438.0,3437.9,11.1412]
[1721342280964,0.0177544,3438.0,3437.9,8.8175]
[1721342281761,0.0177544,3438.0,3437.9,5.8175]
[1721342284122,2.90803,3438.8,3438.1,2.90849]
[1721342284354,5.15982,3438.9,3438.3,2.90835]
[1721342284560,0.515982,3438.8,3438.3,2.90835]
[1721342285527,0.515982,3438.8,3438.1,2.90849]
[1721342286239,2.90807,3438.7,3438.2,2.90849]
[1721342286463,0.515982,3438.8,3438.2,2.90849]
[1721342286637,3.424022,3438.8,3438.2,2.90849]
[1721342286839,0.8583842,3438.7,3438.2,2.90849]
[1721342287259,0.8583842,3438.7,3438.3,2.90841]
[1721342288128,0.8583842,3438.7,3438.1,2.90853]
[1721342288331,2.90797,3438.9,3438.1,5.22473]
[1721342288552,2.90797,3438.9,3438.3,2.90835]
[1721342289763,2.90797,3438.9,3438.4,2.9083]
[1721342290740,2.90797,3438.9,3438.2,2.90842]
[1721342290972,5.15997,3438.7,3438.2,2.90842]
[1721342291178,0.806794,3438.6,3438.2,2.90842]
[1721342292037,0.806794,3438.6,3438.2,2.90844]
[1721342292685,0.806794,3438.6,3438.2,2.90842]
[1721342293684,0.806794,3438.6,3438.0,5.81722]
[1721342293845,0.806794,3438.6,3438.1,2.90857]
[1721342294041,0.5966764,3438.5,3438.1,2.90857]
[1721342295480,0.05891229,3438.4,3437.5,7.44]
[1721342295639,2.90858,3438.1,3437.5,2.90904]
[1721342296708,2.90858,3438.1,3437.5,5.81806]
[1721342296857,2.90835,3438.4,3437.8,2.90878]
[1721342299290,2.90832,3438.5,3437.7,2.90883]
[1721342299444,2.90808,3438.7,3437.9,2.90871]
[1721342299645,2.90817,3438.6,3438.0,2.90861]
[1721342300487,2.90824,3438.5,3438.0,2.90861]
[1721342301847,2.90824,3438.5,3437.8,5.37906]
[1721342302199,3.199154,3438.4,3437.8,2.90876]
[1721342302359,3.199154,3438.4,3437.8,5.81752]
[1721342303543,3.199154,3438.4,3437.9,2.90875]
[1721342303748,0.290824,3438.4,3438.0,2.90864]
[1721342303997,2.90823,3438.6,3438.0,2.90864]
[1721342305295,2.90824,3438.5,3438.0,2.90864]
[1721342306083,2.90824,3438.5,3437.8,2.90876]
[1721342306290,3.199144,3438.5,3437.9,2.90873]
[1721342306649,2.90833,3438.4,3437.9,2.90873]
[1721342309304,0.290824,3438.5,3437.9,2.90868]
[1721342309483,2.90818,3438.6,3438.0,2.90861]
[1721342309675,2.90824,3438.5,3438.0,2.90861]
[1721342315271,2.90813,3438.7,3438.1,2.90856]
[1721342315568,2.90803,3438.8,3438.1,2.90856]
[1721342316404,2.90816,3438.6,3438.1,2.90856]
[1721342317372,2.90803,3438.8,3438.2,2.90844]
[1721342317576,0.920958,3438.7,3438.2,2.90844]
[1721342318715,2.90787,3439.0,3438.4,2.90828]
[1721342319031,1.037,3438.9,3438.4,2.90828]
[1721342320872,3.94491,3438.9,3438.4,2.90828]
[1721342321878,3.94491,3438.9,3438.2,2.90843]
[1721342322072,2.908,3438.8,3438.3,2.90839]
[1721342322691,2.90821,3438.6,3438.0,2.90861]
[1721342322874,2.90821,3438.6,3437.9,2.3596]
[1721342322875,2.90847,3438.3,3437.9,2.3596]
[1721342323412,2.90847,3438.3,3437.8,10.34882]
[1721342323976,2.314,3438.6,3437.8,7.44]
[1721342323977,3.94566,3438.1,3437.8,7.44]
[1721342324177,3.94566,3438.1,3437.4,2.9091]
[1721342324178,2.90874,3438.0,3437.4,2.9091]
[1721342324513,2.90885,3437.8,3437.2,5.91094827]
[1721342324708,2.90885,3437.8,3437.3,1.01160779]
[1721342325023,2.90885,3437.8,3437.3,2.90924]
[1721342326272,2.90885,3437.8,3437.2,2.3959]
[1721342326480,2.90885,3437.8,3437.3,1.01159744]
[1721342326673,2.90885,3437.8,3437.2,5.30521]
[1721342328679,2.90867,3438.0,3437.3,2.90925]
[1721342328904,2.90875,3437.9,3437.4,2.90917]
[1721342329479,2.90875,3437.9,3437.2,5.30516]
[1721342329683,2.90875,3437.9,3437.3,3.92085621]
[1721342329936,2.90875,3437.9,3437.3,2.90924]
[1721342330719,2.90875,3437.9,3437.4,2.90915]
[1721342332014,2.90875,3437.9,3437.2,5.30517]
[1721342332183,2.90875,3437.9,3437.3,2.90923]
[1721342332584,2.90875,3437.9,3437.4,2.90915]
[1721342333284,0.45598627,3437.8,3437.4,2.90915]
[1721342333819,0.45598627,3437.8,3437.5,2.90907]
[1721342335697,0.45598627,3437.8,3437.3,5.81842]
[1721342336019,0.45598627,3437.8,3437.3,2.90919]
[1721342337182,2.90897,3437.7,3437.1,2.90939]
[1721342337979,2.90897,3437.7,3437.1,2.90938]
[1721342338818,2.90897,3437.7,3437.1,5.81874]
[1721342339021,2.90897,3437.7,3437.1,2.90936]
[1721342339386,2.90897,3437.7,3437.2,2.90932]
[1721342341087,2.90897,3437.7,3437.0,5.28313]
[1721342341314,2.90897,3437.7,3437.1,2.90941]
[1721342342086,5.81796,3437.7,3437.1,2.90941]
[1721342342326,0.05793187,3437.6,3437.1,2.90941]
[1721342350355,0.05793187,3437.6,3437.1,2.90938]
[1721342350499,0.05793187,3437.6,3437.3,2.90924]
[1721342350694,4.40183275,3437.8,3437.3,2.90924]
[1721342350919,0.05793628,3437.7,3437.3,2.90924]
[1721342351122,4.40183275,3437.8,3437.3,2.90924]
[1721342351432,0.05793628,3437.7,3437.3,2.90924]
[1721342351647,0.05793628,3437.7,3437.1,2.90936]
[1721342351847,1.49300275,3437.8,3437.1,2.90936]
[1721342352001,2.90892,3437.7,3437.2,2.90933]
[1721342352202,2.96672054,3437.7,3437.2,2.90933]
[1721342357542,2.96672054,3437.7,3437.0,2.3737]
[1721342357543,2.909,3437.6,3437.0,5.28313]
[1721342357718,0.05785605,3437.5,3437.1,2.90936]
[1721342357913,0.05785605,3437.5,3437.1,5.81872]
[1721342358950,0.05785605,3437.5,3437.1,2.90936]
[1721342359244,6.2845,3437.6,3437.1,2.90936]
[1721342359747,0.05794883,3437.5,3437.1,2.90936]
[1721342360459,1.037,3437.4,3436.8,5.90967]
[1721342360606,2.90927,3437.3,3436.8,2.90967]
[1721342360822,2.96687132,3437.3,3436.8,2.90967]
[1721342362867,2.96687132,3437.3,3436.7,2.4092]
[1721342363072,2.96687132,3437.3,3436.7,5.31896]
[1721342364261,5.87620132,3437.3,3436.7,5.31896]
[1721342364561,2.3391,3437.1,3436.7,2.90976]
[1721342364772,2.3391,3437.1,3436.5,2.90989]
[1721342364773,1.09446084,3437.0,3436.5,2.90989]
[1721342364977,1.037,3436.6,3436.3,2.4756]
[1721342365127,1.037,3436.6,3436.2,2.91017]
[1721342365326,2.96722861,3436.5,3436.0,2.4756]
[1721342365546,1.037,3436.1,3435.9,7.44]
[1721342365732,1.037,3436.1,3435.7,3.51638827]
[1721342365942,0.05682541,3436.0,3435.8,1.01206123]
[1721342366333,0.05682541,3436.0,3435.8,2.91052]
[1721342366522,1.037,3436.3,3435.8,2.91052]
[1721342366732,0.05696322,3436.2,3435.8,2.91052]
[1721342370065,0.05696322,3436.2,3435.8,2.91052]
[1721342370481,3.56941165,3436.2,3435.6,5.38625]
[1721342370655,2.91029,3436.1,3435.4,2.91079]
[1721342370981,2.91029,3436.1,3435.5,2.91072]
[1721342371670,6.85732,3436.3,3435.6,2.91068]
[1721342371844,2.9102,3436.2,3435.6,2.91068]
[1721342372045,2.9668623,3436.2,3435.6,2.91068]
[1721342372487,2.91028,3436.1,3435.6,2.91068]
[1721342372840,0.05657737,3436.0,3435.6,2.91068]
[1721342375181,0.05657737,3436.0,3435.6,2.91064]
[1721342375487,0.05657737,3436.0,3435.7,2.91054]
[1721342375653,3.94714,3436.3,3435.7,5.82108]
[1721342375858,3.94714,3436.3,3435.7,2.91054]
[1721342376056,0.05666844,3436.2,3435.7,2.4082]
[1721342376264,3.94685,3436.6,3436.0,2.91031]
[1721342376574,2.91,3436.5,3435.8,2.91046]
[1721342376887,0.05672995,3436.4,3436.0,2.91035]
[1721342377394,0.05668442,3436.3,3436.0,2.91035]
[1721342377983,0.05663889,3436.2,3436.0,2.91035]
[1721342378183,6.85677,3436.6,3436.0,2.91035]
[1721342378384,0.05677548,3436.5,3436.0,2.91035]
[1721342379452,0.05677548,3436.5,3436.0,2.91029]
[1721342379697,0.05677548,3436.5,3436.2,2.91012]
[1721342380205,0.05654361,3436.4,3436.2,2.91015]
[1721342380365,0.05654361,3436.4,3436.3,8.2284]
[1721342380566,2.90935,3437.2,3436.6,2.90983]
[1721342380793,0.05685523,3437.1,3436.6,2.90983]
[1721342381062,0.05685523,3437.1,3436.6,5.81962]
[1721342381707,0.05685523,3437.1,3436.7,2.90976]
[1721342382360,0.05685523,3437.1,3436.6,2.90981]
[1721342382561,2.90901,3437.6,3436.9,2.90958]
[1721342382756,1.037,3437.4,3436.9,2.90958]
[1721342383068,0.0551501,3437.3,3436.9,2.90958]
[1721342383266,0.0551501,3437.3,3436.9,5.81911]
[1721342383468,0.0551501,3437.3,3436.9,2.90953]
[1721342383870,0.0551501,3437.3,3437.0,2.90945]
[1721342384070,1.037,3437.5,3437.0,2.90945]
[1721342384407,2.01465827,3437.5,3437.0,2.90945]
[1721342384582,0.05522038,3437.4,3437.0,2.90945]
[1721342386606,0.05522038,3437.4,3437.2,2.90931]
[1721342387011,1.037,3437.7,3437.2,2.90931]
[1721342387239,0.05518088,3437.3,3437.2,2.90931]
[1721342387448,1.037,3437.7,3437.2,5.8186]
[1721342387740,0.05518088,3437.3,3437.2,2.90929]
[1721342387905,1.037,3437.7,3437.2,2.90929]
[1721342388104,0.05518088,3437.3,3437.2,2.90929]
[1721342388627,3.36485275,3437.8,3437.2,2.90929]
[1721342388841,0.05529087,3437.3,3437.2,2.90929]
[1721342389152,1.037,3437.7,3437.2,2.90929]
[1721342389434,0.05526645,3437.3,3437.2,2.90929]
[1721342389642,1.037,3437.7,3437.2,2.90929]
[1721342389846,0.05519318,3437.3,3437.2,2.90929]
[1721342389998,1.037,3437.7,3437.2,2.90929]
[1721342390199,0.05519318,3437.3,3437.2,2.90929]
[1721342390400,1.037,3437.7,3437.2,2.90929]
[1721342390731,0.05519318,3437.3,3437.2,2.90929]
[1721342391037,0.0553297,3437.6,3437.2,2.90929]
[1721342391242,0.05519318,3437.3,3437.2,2.90929]
[1721342391538,1.037,3437.7,3437.2,2.90929]
[1721342391702,0.05519318,3437.3,3437.2,2.90929]
[1721342391902,0.45600275,3437.8,3437.0,2.4082]
[1721342391903,0.45600275,3437.8,3437.3,2.90925]
[1721342392097,0.05502222,3437.3,3437.2,2.90931]
[1721342392309,1.49300275,3437.8,3437.3,2.9092]
[1721342392630,1.49300275,3437.8,3437.4,2.90916]
[1721342394321,0.05521407,3437.7,3437.4,2.90916]
[1721342394523,0.05521407,3437.7,3437.2,2.90927]
[1721342394720,1.49300275,3437.8,3437.2,2.90927]
[1721342394924,0.05519299,3437.6,3437.2,2.90927]
[1721342395124,0.05523849,3437.7,3437.2,2.90927]
[1721342395310,0.05514748,3437.5,3437.3,2.90925]
[1721342395513,0.05519299,3437.6,3437.3,2.90925]
[1721342395715,5.37944903,3437.8,3437.3,2.90925]
[1721342395716,0.05510197,3437.4,3437.3,2.90925]
[1721342395937,1.037,3437.6,3437.1,2.90937]
[1721342396127,1.037,3437.6,3437.1,5.81872]
[1721342396128,0.05510197,3437.4,3437.1,5.81872]
[1721342396364,0.05514748,3437.5,3437.1,5.81872]
[1721342396565,0.05505646,3437.3,3437.1,5.81872]
[1721342396718,1.037,3437.6,3437.1,2.90935]
[1721342397051,1.037,3437.6,3437.2,2.90934]
[1721342397257,0.05515925,3437.5,3437.2,2.90934]
[1721342402554,4.40185275,3437.8,3437.2,5.81862]
[1721342402884,4.40185275,3437.8,3437.2,2.90928]
[1721342403190,0.05525026,3437.7,3437.2,5.81855]
[1721342403980,0.05525026,3437.7,3437.4,5.17201]
[1721342404260,0.45600275,3437.8,3437.5,2.90908]
[1721342404496,0.05430861,3437.6,3437.5,2.90908]
[1721342404794,0.45600275,3437.8,3437.5,2.90908]
[1721342405208,0.05435411,3437.7,3437.5,2.90908]
[1721342405552,0.45600275,3437.8,3437.5,2.90908]
[1721342405766,0.0543302,3437.6,3437.5,2.90908]
[1721342405959,0.45600275,3437.8,3437.5,2.90908]
[1721342406561,0.05432686,3437.7,3437.5,2.90908]
[1721342406894,0.45600275,3437.8,3437.5,2.90908]
[1721342407094,0.05430578,3437.6,3437.5,2.90908]
[1721342407306,0.45600275,3437.8,3437.5,2.90908]
[1721342407482,0.05430578,3437.6,3437.5,2.90908]
[1721342407685,0.45600275,3437.8,3437.5,2.90908]
[1721342408014,0.05430578,3437.6,3437.5,2.90908]
[1721342408465,0.45600275,3437.8,3437.6,2.90898]
[1721342408869,3.9456,3438.1,3437.6,2.90898]
[1721342409179,1.037,3437.9,3437.6,2.90898]
[1721342412394,0.05439777,3437.8,3437.6,2.90898]
[1721342413551,0.05439777,3437.8,3436.6,1.51741485]
[1721342413552,0.45599099,3437.9,3437.8,2.90883]
[1721342413877,0.51049687,3437.9,3437.8,2.90883]
[1721342414706,0.51049687,3437.9,3437.8,8.30293479]
[1721342415026,8.537,3439.0,3438.4,2.90826]
[1721342415321,0.05137213,3438.9,3438.4,2.90826]
[1721342415831,0.05137213,3438.9,3438.5,2.90824]
[1721342416583,0.05137213,3438.9,3438.5,5.8164]
[1721342416782,1.037,3438.8,3438.5,2.90816]
[1721342417180,0.05125105,3438.7,3438.5,2.90816]
[1721342417432,1.037,3438.8,3438.5,2.90816]
[1721342417784,0.05125105,3438.7,3438.5,2.90816]
[1721342418296,0.05120557,3438.6,3438.5,2.90816]
[1721342418628,1.037,3438.8,3438.5,2.90816]
[1721342419222,0.05132425,3438.7,3438.5,2.90816]
[1721342419630,1.037,3438.8,3438.5,2.90816]
[1721342419780,0.05093227,3438.6,3438.5,2.90816]
[1721342419983,1.037,3438.8,3438.5,2.90816]
[1721342422203,1.037,3438.8,3438.5,2.90816]
[1721342422525,0.04920967,3438.7,3438.6,2.90815]
[1721342423120,0.04920967,3438.7,3438.6,2.90809]
[1721342423297,0.4558931,3438.9,3438.6,2.90809]
[1721342423502,0.04948296,3438.7,3438.6,2.90809]
[1721342423708,0.4558931,3438.9,3438.6,2.90809]
[1721342423912,0.04948296,3438.7,3438.6,2.90809]
[1721342424430,1.037,3438.8,3438.6,2.90809]
[1721342424726,0.04948296,3438.7,3438.6,2.90809]
[1721342424923,1.037,3438.8,3438.6,2.90809]
[1721342425087,0.04956683,3438.7,3438.6,2.90809]
[1721342425295,1.037,3438.8,3438.6,2.90809]
[1721342425496,0.04956683,3438.7,3438.5,2.90824]
[1721342425703,1.037,3438.8,3438.5,2.90824]
[1721342425921,0.04952135,3438.6,3438.5,2.90824]
[1721342426219,1.037,3438.8,3438.5,2.90824]
[1721342426414,0.04952135,3438.6,3438.5,2.90824]
[1721342426611,1.037,3438.8,3438.5,2.90824]
[1721342426819,0.04952135,3438.6,3438.5,2.90824]
[1721342427122,1.037,3438.8,3438.5,2.90824]
[1721342427353,0.04952135,3438.6,3438.5,2.90824]
[1721342427501,1.037,3438.8,3438.5,2.90824]
[1721342427701,0.04952135,3438.6,3438.5,2.90824]
[1721342427904,1.037,3438.8,3438.4,2.90832]
[1721342428118,0.04959456,3438.6,3438.4,2.90832]
[1721342428296,1.037,3438.8,3438.4,2.90832]
[1721342428510,0.04954908,3438.5,3438.4,2.90832]
[1721342428721,1.037,3438.8,3438.1,2.90853]
[1721342428932,0.04934902,3438.5,3438.3,2.90839]
[1721342429105,1.037,3438.8,3438.3,2.90835]
[1721342429306,0.04930354,3438.4,3438.0,2.3437]
[1721342429507,1.037,3438.8,3438.3,2.90835]
[1721342430302,0.04943997,3438.7,3438.3,2.90835]
[1721342430603,1.037,3438.8,3438.3,2.90835]
[1721342430932,0.04943997,3438.7,3438.3,2.90833]
[1721342431136,1.037,3438.8,3438.3,2.90833]
[1721342431348,0.0493945,3438.6,3438.1,2.90851]
[1721342431516,1.037,3438.8,3438.3,2.90835]
[1721342431712,0.07971545,3438.5,3438.3,5.81668]
[1721342431918,1.037,3438.8,3438.3,5.81668]
[1721342432120,0.07967182,3438.4,3438.3,2.90833]
[1721342432416,1.037,3438.8,3438.3,5.81667]
[1721342432616,0.07796267,3438.4,3438.3,2.90833]
[1721342432820,1.037,3438.8,3438.4,2.90832]
[1721342433018,3.3638131,3438.9,3438.4,2.90832]
[1721342433217,0.4558931,3438.9,3438.6,2.2812]
[1721342433936,0.07814105,3438.8,3438.6,2.2812]
[1721342434246,0.07814105,3438.8,3438.5,2.90819]
[1721342435541,0.07814105,3438.8,3438.6,2.90815]
[1721342436403,0.07814105,3438.8,3438.4,5.18945]
[1721342436607,0.07814105,3438.8,3438.5,2.90824]
[1721342438319,0.07814105,3438.8,3438.6,2.90814]
[1721342441311,0.07814105,3438.8,3438.7,2.90807]
[1721342441657,2.3131,3438.7,3438.5,2.90824]
[1721342441856,1.11514105,3438.8,3438.5,2.90824]
[1721342443623,1.11514105,3438.8,3438.3,2.90833]
[1721342443825,1.11514105,3438.8,3438.5,2.90824]
[1721342444047,1.037,3438.6,3438.1,2.90855]
[1721342444257,0.67919542,3438.8,3437.8,7.44]
[1721342444258,1.037,3438.2,3437.8,7.44]
[1721342444459,1.037,3437.9,3437.3,2.90922]
[1721342444661,1.037,3437.9,3437.2,2.43]
[1721342444662,1.037,3437.7,3437.2,2.43]
[1721342444878,1.037,3437.7,3437.2,5.33928]
[1721342445165,0.07757412,3437.8,3437.2,5.33928]
[1721342445542,0.07757412,3437.8,3437.5,2.90902]
[1721342445863,2.90862,3438.1,3437.5,2.90902]
[1721342446069,3.819584,3438.1,3437.5,2.90902]
[1721342446438,0.07803565,3438.0,3437.5,2.90902]
[1721342447053,2.98670565,3438.0,3437.5,2.90902]
[1721342447256,4.02370565,3438.0,3437.5,2.90902]
[1721342449242,2.90878,3437.9,3437.3,2.90921]
[1721342450042,0.07684764,3437.8,3437.3,2.90921]
[1721342450238,1.037,3437.6,3437.2,2.90931]
[1721342450443,3.94606,3437.6,3436.9,2.90954]
[1721342450644,0.0767588,3437.5,3437.0,2.9095]
[1721342451642,0.0767588,3437.5,3437.1,2.90942]
[1721342453983,0.0767588,3437.5,3436.4,2.90994]
[1721342453984,0.90844468,3437.5,3436.5,1.51758576]
[1721342454148,2.4222,3437.2,3436.3,7.44]
[1721342454342,2.90965,3436.9,3436.3,7.44]
[1721342454558,2.90965,3436.9,3436.2,2.91014]
[1721342454846,0.07609507,3436.8,3436.2,5.82025]
[1721342455045,0.07609507,3436.8,3436.3,2.91007]
[1721342455352,0.07609507,3436.8,3436.1,2.4718]
[1721342455353,0.07609507,3436.8,3436.1,5.38202]
[1721342455543,5.81966,3436.7,3436.0,2.91031]
[1721342455744,3.04478273,3436.7,3436.0,2.91031]
[1721342456390,2.98587044,3436.7,3436.1,2.91027]
[1721342457678,0.07605044,3436.7,3436.2,2.91016]
[1721342460466,0.07605044,3436.7,3436.3,2.91005]
[1721342460808,5.81931,3436.9,3436.3,2.91005]
[1721342460964,0.07575358,3436.6,3436.3,2.91005]
[1721342461157,2.90963,3436.9,3436.3,2.91005]
[1721342461672,2.11639711,3438.8,3437.0,2.90949]
[1721342461673,2.90889,3437.8,3437.0,2.90949]
[1721342461883,2.90897,3437.7,3437.0,2.90949]
[1721342462187,3.26302897,3438.0,3436.9,2.2661]
[1721342462188,2.4787,3438.0,3436.9,2.2661]
[1721342462507,2.4787,3438.0,3437.3,2.90921]
[1721342462508,5.38739,3438.0,3437.3,2.90921]
[1721342462800,2.90869,3438.0,3437.4,2.90915]
[1721342462975,2.90877,3437.9,3437.2,2.90926]
[1721342463363,2.90898,3437.7,3437.0,2.90951]
[1721342463563,2.90898,3437.7,3437.0,5.81894]
[1721342463783,2.90898,3437.7,3437.1,2.9094]
[1721342463972,2.90898,3437.7,3437.2,2.90933]
[1721342464361,2.90878,3437.9,3437.2,2.90933]
[1721342464572,5.45738229,3438.3,3437.6,2.909]